[Event "4th EFE Metz Festival-IM"]
[Site "Metz"]
[Date "2018.07.23"]
[Round "1"]
[White "Mohammad, Fahim"]
[Black "Harutyunyan, Ruben"]
[Result "0-1"]
[ECO "A11"]
[WhiteElo "2383"]
[BlackElo "2303"]
[Annotator "NA"]
[PlyCount "92"]
[EventDate "2018.07.22"]
[EventType "tourn"]
[EventCountry "FRA"]
[SourceTitle "playchess.com"]
[Source "ChessBase"]
[SourceQuality "1"]
[TimeControl "5400+30"]

1. c4 {[%emt 0:00:00]} c6 {[%emt 0:00:17]} 2. Nf3 {[%emt 0:03:04]} d5 {[%emt 0:00:05]} 3. e3 {[%emt 0:00:17]} Nf6 {[%emt 0:00:12]} 4. b3 {[%emt 0:00:26]} Bg4 {[%emt 0:01:27]} 5. Bb2 {[%emt 0:01:08]} e6 {[%emt 0:01:10]} 6. Be2 {[%emt 0:01:57]} Nbd7 {[%emt 0:00:55]} 7. O-O {[%emt 0:02:24]} Bd6 {[%emt 0:01:51]} 8. d4 {[%emt 0:01:10]} Ne4 {[%emt 0:13:18]} 9. Ne5 {[%emt 0:05:48]} Bxe2 {[%emt 0:01:41]} 10. Qxe2 {[%emt 0:00:08]} Nxe5 {[%emt 0:17:32]} 11. dxe5 {[%emt 0:00:20]} Be7 {[%emt 0:00:10]} 12. f3 {[%emt 0:06:03]} Nc5 {[%emt 0:00:14]} 13. Nd2 {[%emt 0:00:15]} O-O {[%emt 0:02:12]} 14. Rad1 {[%emt 0:03:32]} Qb6 {[%emt 0:06:58]} 15. Bd4 {[%emt 0:03:46]} Qa6 {[%emt 0:03:54]} 16. a4 {[%emt 0:06:33]} dxc4 {[%emt 0:22:10]} 17. Bxc5 {[%emt 0:03:17]} Bxc5 18. Nxc4 {[%emt 0:00:19]} Rad8 {[%emt 0:00:24]} 19. Kh1 {[%emt 0:16:42]} Rd5 {[%emt 0:09:09]} 20. e4 {[%emt 0:02:20]} Rd4 {[%emt 0:00:42]} 21. f4 {[%emt 0:00:19]} Rfd8 {[%emt 0:04:29]} 22. f5 {[%emt 0:02:33]} Rxd1 {[%emt 0:09:05]} 23. Rxd1 {[%emt 0:00:40]} Rxd1+ {[%emt 0:00:02]} 24. Qxd1 {[%emt 0:00:06]} b5 {[%emt 0:00:19]} 25. Nd6 {[%emt 0:12:11]} bxa4 {[%emt 0:00:35]} 26. bxa4 {[%emt 0:00:01]} Bd4 {[%emt 0:03:13]} 27. h3 {[%emt 0:11:25]} Bxe5 {[%emt 0:01:08]} 28. Nc4 {[%emt 0:01:50]} Bf6 {[%emt 0:00:30]} 29. Qb3 {[%emt 0:04:28]} h6 {[%emt 0:00:23]} 30. fxe6 {[%emt 0:02:24]} fxe6 {[%emt 0:00:12]} 31. e5 {[%emt 0:00:34]} Be7 {[%emt 0:00:29]} 32. Qb8+ {[%emt 0:06:26]} Bf8 {[%emt 0:00:32]} 33. Qb3 {[%emt 0:00:47]} Qc8 {[%emt 0:00:55]} 34. a5 {[%emt 0:00:58]} Qd7 {[%emt 0:00:39]} 35. a6 {[%emt 0:00:33]} Qd5 {[%emt 0:00:23]} 36. Qc2 {[%emt 0:01:15]} Bc5 {[%emt 0:00:27]} 37. Qe2 {[%emt 0:00:33]} Qd4 {[%emt 0:00:28]} 38. Qf1 {[%emt 0:01:10]} h5 {[%emt 0:00:34]} 39. g3 {[%emt 0:00:47]} Qe4+ {[%emt 0:00:25]} 40. Kh2 {[%emt 0:00:07]} Qc2+ {[%emt 0:00:26]} 41. Kh1 {[%emt 0:00:07]} Bf2 {[%emt 0:00:18]} 42. Nd6 {[%emt 0:00:27]} Qa2 {[%emt 0:00:47]} 43. Qg2 {[%emt 0:01:18]} Qa1+ {[%emt 0:00:33]} 44. Kh2 {[%emt 0:00:10]} Qe1 {[%emt 0:00:29]} 45. Ne4 {[%emt 0:00:20]} Bd4 {[%emt 0:00:33]} 46. Qf3 {[%emt 0:01:07]} Qg1# {[%emt 0:00:05]} 0-1

[Event "4th EFE Metz Festival-IM"]
[Site "Metz"]
[Date "2018.07.23"]
[Round "1"]
[White "Gatineau, Yovann"]
[Black "Villegas, Pierre"]
[Result "0-1"]
[ECO "D41"]
[WhiteElo "2373"]
[BlackElo "2376"]
[Annotator "NA"]
[PlyCount "108"]
[EventDate "2018.07.22"]
[EventType "tourn"]
[EventCountry "FRA"]
[SourceTitle "playchess.com"]
[Source "ChessBase"]
[SourceQuality "1"]
[TimeControl "5400+30"]

1. Nf3 {[%emt 0:00:00]} d5 {[%emt 0:00:32]} 2. d4 {[%emt 0:00:00]} Nf6 {[%emt 0:00:06]} 3. c4 {[%emt 0:00:00]} e6 {[%emt 0:00:10]} 4. Nc3 {[%emt 0:00:18]} c5 {[%emt 0:00:41]} 5. cxd5 {[%emt 0:00:15]} Nxd5 {[%emt 0:00:12]} 6. g3 {[%emt 0:00:04]} Nxc3 {[%emt 0:01:46]} 7. bxc3 {[%emt 0:00:09]} cxd4 {[%emt 0:00:04]} 8. cxd4 {[%emt 0:01:45]} Bb4+ {[%emt 0:00:18]} 9. Bd2 {[%emt 0:00:06]} Bxd2+ {[%emt 0:00:07]} 10. Qxd2 {[%emt 0:00:05]} b6 {[%emt 0:00:47]} 11. Bg2 {[%emt 0:08:38]} Bb7 {[%emt 0:00:21]} 12. O-O {[%emt 0:00:32]} O-O {[%emt 0:00:18]} 13. Rfd1 {[%emt 0:04:41]} Nd7 {[%emt 0:09:51]} 14. Rac1 {[%emt 0:16:21]} Rc8 {[%emt 0:12:45]} 15. Rxc8 {[%emt 0:01:19]} Qxc8 {[%emt 0:01:01]} 16. Rc1 {[%emt 0:13:22]} Qb8 {[%emt 0:02:26]} 17. Qb4 {[%emt 0:16:08]} Rc8 {[%emt 0:10:46]} 18. Rxc8+ {[%emt 0:00:13]} Qxc8 {[%emt 0:00:06]} 19. Qe7 {[%emt 0:00:10]} h6 {[%emt 0:01:24]} 20. h4 {[%emt 0:01:59]} Bc6 {[%emt 0:04:37]} 21. Ne1 {[%emt 0:15:23]} Bb5 {[%emt 0:03:41]} 22. Kf1 {[%emt 0:06:33]} a5 {[%emt 0:07:22]} 23. Bf3 {[%emt 0:01:51]} Qf8 {[%emt 0:05:50]} 24. Qxf8+ {[%emt 0:00:08]} Kxf8 {[%emt 0:00:03]} 25. Nc2 {[%emt 0:01:28]} Bc4 {[%emt 0:04:24]} 26. a3 {[%emt 0:00:07]} Bb3 {[%emt 0:02:15]} 27. Ne3 {[%emt 0:04:18]} Ke7 {[%emt 0:05:28]} 28. Ke1 {[%emt 0:00:06]} Kd6 {[%emt 0:00:22]} 29. Kd2 {[%emt 0:00:08]} Nf6 {[%emt 0:03:32]} 30. Kc3 {[%emt 0:01:09]} Bd5 {[%emt 0:02:27]} 31. Nxd5 {[%emt 0:07:17]} exd5 {[%emt 0:01:56]} 32. Bg2 {[%emt 0:00:41]} Ng4 {[%emt 0:03:00]} 33. f3 {[%emt 0:00:14]} Ne3 {[%emt 0:00:04]} 34. Bh3 {[%emt 0:00:06]} b5 {[%emt 0:00:16]} 35. Bc8 {[%emt 0:01:01]} Kc7 {[%emt 0:08:09]} 36. Ba6 {[%emt 0:00:36]} Kb6 {[%emt 0:01:10]} 37. Bc8 {[%emt 0:00:05]} Kc6 {[%emt 0:00:07]} 38. Bh3 {[%emt 0:01:05]} a4 {[%emt 0:04:00]} 39. Bc8 {[%emt 0:00:36]} Kc7 {[%emt 0:01:32]} 40. Bh3 {[%emt 0:00:12]} g6 {[%emt 0:03:45]} 41. Kd3 {[%emt 0:00:48]} Nc4 {[%emt 0:00:16]} 42. e4 {[%emt 0:00:26]} Nxa3 {[%emt 0:00:43]} 43. e5 {[%emt 0:00:24]} b4 {[%emt 0:00:27]} 44. e6 {[%emt 0:00:41]} fxe6 {[%emt 0:00:56]} 45. Bxe6 {[%emt 0:00:02]} Kd6 {[%emt 0:00:21]} 46. Bf7 {[%emt 0:00:07]} g5 {[%emt 0:00:23]} 47. hxg5 {[%emt 0:00:04]} hxg5 {[%emt 0:00:01]} 48. f4 {[%emt 0:00:41]} gxf4 {[%emt 0:00:22]} 49. gxf4 {[%emt 0:00:01]} b3 {[%emt 0:02:16]} 50. Kc3 {[%emt 0:00:29]} Nc4 {[%emt 0:00:03]} 51. Bg6 {[%emt 0:01:24]} b2 {[%emt 0:01:38]} 52. Bb1 {[%emt 0:01:12]} Na3 {[%emt 0:00:40]} 53. Kxb2 {[%emt 0:00:27]} Nxb1 {[%emt 0:00:03]} 54. Kxb1 {[%emt 0:00:07]} Ke6 {[%emt 0:00:01]} 0-1

[Event "4th EFE Metz Festival-IM"]
[Site "Metz"]
[Date "2018.07.23"]
[Round "1"]
[White "Stephan, Victor"]
[Black "Adrian, Claude"]
[Result "1-0"]
[ECO "A57"]
[WhiteElo "2356"]
[BlackElo "2267"]
[Annotator "NA"]
[PlyCount "61"]
[EventDate "2018.07.22"]
[EventType "tourn"]
[EventCountry "FRA"]
[SourceTitle "playchess.com"]
[Source "ChessBase"]
[SourceQuality "1"]
[TimeControl "5400+30"]

1. d4 {[%emt 0:00:00]} Nf6 {[%emt 0:00:35]} 2. c4 {[%emt 0:00:00]} c5 {[%emt 0:00:21]} 3. d5 {[%emt 0:00:40]} b5 {[%emt 0:00:08]} 4. a4 {[%emt 0:02:34]} b4 {[%emt 0:00:32]} 5. Qc2 {[%emt 0:01:18]} g6 {[%emt 0:02:41]} 6. e4 {[%emt 0:00:16]} Bg7 {[%emt 0:02:06]} 7. e5 {[%emt 0:04:13]} Ng4 {[%emt 0:02:29]} 8. h3 {[%emt 0:01:33]} Nh6 {[%emt 0:01:40]} 9. g4 {[%emt 0:05:18]} d6 {[%emt 0:05:27]} 10. Bg2 {[%emt 0:01:26]} Bb7 {[%emt 0:03:28]} 11. f4 {[%emt 0:03:27]} Qc7 {[%emt 0:13:32]} 12. Nf3 {[%emt 0:02:56]} e6 {[%emt 0:14:50]} 13. O-O {[%emt 0:06:18]} O-O {[%emt 0:02:17]} 14. f5 {[%emt 0:04:25]} exf5 {[%emt 0:05:54]} 15. exd6 {[%emt 0:03:20]} Qxd6 {[%emt 0:00:28]} 16. g5 {[%emt 0:00:25]} Ng4 {[%emt 0:02:19]} 17. hxg4 {[%emt 0:00:29]} fxg4 {[%emt 0:00:09]} 18. Nh2 {[%emt 0:01:26]} Bd4+ {[%emt 0:05:58]} 19. Kh1 {[%emt 0:00:07]} h5 {[%emt 0:00:17]} 20. Bf4 {[%emt 0:07:05]} Be5 {[%emt 0:04:54]} 21. Bxe5 {[%emt 0:02:39]} Qxe5 {[%emt 0:00:06]} 22. Nd2 {[%emt 0:00:27]} Qxg5 {[%emt 0:03:06]} 23. Ne4 {[%emt 0:00:56]} Qh4 {[%emt 0:01:16]} 24. Nf6+ {[%emt 0:04:21]} Kg7 {[%emt 0:02:31]} 25. Qe4 {[%emt 0:00:51]} Na6 {[%emt 0:04:38]} 26. Qe7 {[%emt 0:02:09]} g5 {[%emt 0:02:03]} 27. Qe5 {[%emt 0:04:17]} Kh6 {[%emt 0:00:55]} 28. Ne4 {[%emt 0:04:19]} Rae8 {[%emt 0:02:47]} 29. Qf6+ {[%emt 0:00:55]} Kh7 {[%emt 0:00:38]} 30. Nxg5+ {[%emt 0:00:24]} Kg8 {[%emt 0:00:16]} 31. Qf5 {[%emt 0:00:32]} 1-0

[Event "4th EFE Metz Festival-IM"]
[Site "Metz"]
[Date "2018.07.23"]
[Round "1"]
[White "Mohota, Nisha"]
[Black "Le Corre, Benjamin"]
[Result "1/2-1/2"]
[ECO "A04"]
[WhiteElo "2265"]
[BlackElo "2257"]
[Annotator "NA"]
[PlyCount "91"]
[EventDate "2018.07.22"]
[EventType "tourn"]
[EventCountry "FRA"]
[SourceTitle "playchess.com"]
[Source "ChessBase"]
[SourceQuality "1"]
[TimeControl "5400+30"]

1. Nf3 {[%emt 0:00:00]} d6 {[%emt 0:01:31]} 2. d4 {[%emt 0:00:30]} Nf6 {[%emt 0:00:06]} 3. g3 {[%emt 0:00:17]} g6 {[%emt 0:00:17]} 4. b3 {[%emt 0:00:33]} Bg7 {[%emt 0:02:11] LiveBook: 95 Partien} 5. Bb2 $11 {[%emt 0:00:04]} O-O {[%emt 0:01:38]} 6. Bg2 {[%emt 0:00:11]} a5 {[%emt 0:02:13]} 7. c4 {[%emt 0:04:13]} Nbd7 {[%emt 0:01:29]} 8. O-O {[%emt 0:02:13]} a4 {[%emt 0:04:29]} 9. Qc2 {[%emt 0:04:13]} e5 {[%emt 0:07:19]} 10. dxe5 {[%emt 0:00:59]} dxe5 {[%emt 0:00:10]} 11. Nxe5 {[%emt 0:14:23]} Nxe5 {[%emt 0:00:27]} 12. Bxe5 {[%emt 0:00:20]} Qe7 {[%emt 0:00:10]} 13. Bb2 {[%emt 0:14:45]} Bf5 {[%emt 0:06:19]} 14. Qc1 {[%emt 0:02:02]} axb3 {[%emt 0:05:08]} 15. axb3 {[%emt 0:01:45]} Rxa1 {[%emt 0:01:38]} 16. Bxa1 {[%emt 0:00:03]} Qxe2 {[%emt 0:00:42]} 17. Nc3 {[%emt 0:04:39]} Qc2 {[%emt 0:03:53]} 18. Bxb7 {[%emt 0:10:04]} Rb8 {[%emt 0:31:03]} 19. Nd5 {[%emt 0:08:46]} Nxd5 {[%emt 0:05:50]} 20. Bxd5 {[%emt 0:01:39]} Qxc1 {[%emt 0:01:07]} 21. Rxc1 {[%emt 0:00:03]} Rxb3 {[%emt 0:00:26]} 22. Bxg7 {[%emt 0:00:38]} Kxg7 {[%emt 0:00:05]} 23. Kg2 {[%emt 0:02:06]} Kf6 {[%emt 0:01:15]} 24. Ra1 {[%emt 0:15:06]} Be6 {[%emt 0:01:51]} 25. Bxe6 {[%emt 0:01:09]} Kxe6 {[%emt 0:00:06]} 26. Ra6+ {[%emt 0:00:27]} Rb6 {[%emt 0:01:02]} 27. Rxb6+ {[%emt 0:02:57]} cxb6 {[%emt 0:00:23]} 28. Kf3 {[%emt 0:00:03]} g5 {[%emt 0:12:58]} 29. Ke3 {[%emt 0:02:30]} g4 {[%emt 0:02:17]} 30. f4 {[%emt 0:02:55]} gxf3 {[%emt 0:00:35]} 31. Kxf3 {[%emt 0:00:02]} Kf5 {[%emt 0:01:26]} 32. g4+ {[%emt 0:01:29]} Ke5 {[%emt 0:00:15]} 33. Ke3 {[%emt 0:00:17]} f6 {[%emt 0:02:31]} 34. h3 {[%emt 0:02:25]} h6 {[%emt 0:01:03]} 35. h4 {[%emt 0:00:40]} f5 {[%emt 0:00:22]} 36. g5 {[%emt 0:00:30]} hxg5 {[%emt 0:00:09]} 37. hxg5 {[%emt 0:00:08]} f4+ {[%emt 0:00:05]} 38. Kf3 {[%emt 0:00:05]} Kf5 {[%emt 0:00:04]} 39. g6 {[%emt 0:00:14]} Kxg6 {[%emt 0:00:03]} 40. Kxf4 {[%emt 0:00:03]} Kf6 {[%emt 0:00:09]} 41. Ke4 {[%emt 0:00:44]} Ke6 {[%emt 0:00:04]} 42. Kd4 {[%emt 0:00:26]} Kd6 {[%emt 0:00:04]} 43. Kc3 {[%emt 0:00:48]} b5 {[%emt 0:00:15]} 44. cxb5 {[%emt 0:00:12]} Kc5 {[%emt 0:00:03]} 45. b6 {[%emt 0:00:05]} Kxb6 46. Kd4 1/2-1/2

[Event "4th EFE Metz Festival-IM"]
[Site "Metz"]
[Date "2018.07.24"]
[Round "2"]
[White "Murdzia, Piotr"]
[Black "Gatineau, Yovann"]
[Result "0-1"]
[ECO "D45"]
[WhiteElo "2410"]
[BlackElo "2373"]
[Annotator "NA"]
[PlyCount "82"]
[EventDate "2018.07.22"]
[EventType "tourn"]
[EventCountry "FRA"]
[SourceTitle "playchess.com"]
[Source "ChessBase"]
[SourceQuality "1"]
[TimeControl "5400+30"]

1. d4 {[%emt 0:00:00]} d5 {[%emt 0:11:43]} 2. c4 {[%emt 0:00:57]} c6 {[%emt 0:00:07]} 3. Nf3 {[%emt 0:00:37]} Nf6 {[%emt 0:00:13]} 4. Nc3 {[%emt 0:02:36]} e6 {[%emt 0:00:12]} 5. e3 {[%emt 0:00:46]} Nbd7 {[%emt 0:00:09]} 6. Qc2 {[%emt 0:00:57]} Bd6 {[%emt 0:00:10]} 7. Be2 {[%emt 0:00:05]} O-O {[%emt 0:00:07]} 8. O-O {[%emt 0:00:24]} e5 {[%emt 0:00:03]} 9. a4 $146 {[%emt 0:29:37] D45: Semi-Slav: 5 e3} ({Predecessor:} 9. cxd5 cxd5 10. Nb5 Bb8 11. dxe5 Nxe5 12. Bd2 Ne4 13. Bb4 Re8 14. Rac1 Nc6 15. Bc3 Re6 16. Bd3 Qe7 17. Qb3 Rh6 18. g3 Bg4 19. Be2 a6 20. Nbd4 Ba7 21. Qxd5 {1-0 (63) Potkin,V (2597)-Gelfand,B (2734) Almaty 2016}) 9... e4 {[%emt 0:03:13]} 10. Nd2 {[%emt 0:00:12]} Re8 {[%emt 0:00:22]} 11. b3 {[%emt 0:00:25]} Nf8 {[%emt 0:01:02]} 12. Ba3 {[%emt 0:01:08]} Bb8 {[%emt 0:04:17]} 13. Rfc1 {[%emt 0:01:26]} a6 {[%emt 0:06:57]} 14. Nf1 {[%emt 0:00:27]} Ng6 {[%emt 0:22:00]} 15. b4 {[%emt 0:01:20]} Nh4 {[%emt 0:05:44]} 16. b5 {[%emt 0:05:37]} Qd7 {[%emt 0:07:05]} 17. bxc6 {[%emt 0:03:57]} bxc6 {[%emt 0:00:40]} 18. Ng3 {[%emt 0:01:50] [#]} h5 $2 {[%emt 0:16:36]} (18... Nxg2 $1 $17 {[%mdl 512]} 19. Kxg2 Qh3+ 20. Kh1 Ng4 21. Bxg4 Bxg4) 19. Bf1 {[%emt 0:10:49]} Nf3+ {[%emt 0:03:37]} 20. gxf3 {[%emt 0:02:31]} exf3 {[%emt 0:00:05]} 21. cxd5 {[%emt 0:10:20]} cxd5 {[%emt 0:00:11] [#]} (21... Qg4 $1 $11 {remains equal.}) 22. Qd1 $1 {[%emt 0:01:15]} Qg4 {[%emt 0:00:58]} 23. h3 {[%emt 0:03:12]} Qg5 {[%emt 0:00:35]} 24. Qxf3 {[%emt 0:00:29]} h4 {[%emt 0:00:05]} 25. Nxd5 {[%emt 0:07:05]} Nxd5 {[%emt 0:01:33]} 26. Qh5 {[%emt 0:00:36]} Qf6 $2 {[%emt 0:03:35] [#]} (26... Qd8 $16 {ist eine bessere Verteidigung.} 27. Bd3 Nf6 28. Qxh4 Bxg3 29. Qxg3 Bb7) 27. Ne4 $1 {[%emt 0:00:54]} ({Not} 27. Qxd5 hxg3 28. f4 Ra7 $16) 27... Bh2+ $18 {[%emt 0:07:35]} (27... Qf5 28. Ng5 (28. Qxh4 Bf4 $16) 28... Nxe3) 28. Kxh2 {[%emt 0:09:15]} Rxe4 {[%emt 0:00:22]} 29. Ra2 {[%emt 0:00:07]} Bb7 {[%emt 0:01:23]} 30. Bg2 {[%emt 0:00:31]} Nf4 {[%emt 0:00:09]} 31. exf4 {[%emt 0:02:06]} Qxf4+ {[%emt 0:00:14]} 32. Kg1 {[%emt 0:00:04]} g6 {[%emt 0:00:50]} 33. Qc5 {[%emt 0:01:40]} Rae8 {[%emt 0:00:20]} 34. Raa1 {[%emt 0:00:42]} Re2 {[%emt 0:01:32]} 35. d5 {[%emt 0:00:39]} R8e5 {[%emt 0:01:13]} 36. Rab1 {[%emt 0:01:07]} Rxd5 {[%emt 0:02:40]} 37. Qb6 {[%emt 0:01:40]} Rg5 {[%emt 0:00:37]} 38. Qxb7 {[%emt 0:00:51]} Qxf2+ {[%emt 0:00:04]} 39. Kh1 {[%emt 0:00:02]} Rxg2 {[%emt 0:00:13]} 40. Rc8+ {[%emt 0:00:58]} Kh7 {[%emt 0:00:52]} 41. Rh8+ {[%emt 0:00:41]} Kxh8 {[%emt 0:00:04]} 0-1

[Event "4th EFE Metz Festival-IM"]
[Site "Metz"]
[Date "2018.07.24"]
[Round "2"]
[White "Stephan, Victor"]
[Black "Mohammad, Fahim"]
[Result "1-0"]
[ECO "A40"]
[WhiteElo "2356"]
[BlackElo "2383"]
[Annotator "NA"]
[PlyCount "63"]
[EventDate "2018.07.22"]
[EventType "tourn"]
[EventCountry "FRA"]
[SourceTitle "playchess.com"]
[Source "ChessBase"]
[SourceQuality "1"]
[TimeControl "5400+30"]

1. d4 {[%emt 0:00:00]} e6 {[%emt 0:11:57]} 2. c4 {[%emt 0:00:25]} b6 {[%emt 0:00:06]} 3. e4 {[%emt 0:01:56]} Bb7 {[%emt 0:01:29]} 4. Bd3 {[%emt 0:00:22]} f5 {[%emt 0:00:19]} 5. exf5 {[%emt 0:00:20]} Bb4+ {[%emt 0:00:09]} 6. Kf1 {[%emt 0:00:14]} Nf6 {[%emt 0:00:25]} 7. c5 {[%emt 0:00:15]} bxc5 {[%emt 0:09:11] A40: Unusual replies to 1 d4} 8. a3 {[%emt 0:00:41]} c4 {[%emt 0:00:32]} 9. Bxc4 {[%emt 0:00:26]} Be7 {[%emt 0:01:12]} (9... Ba5 10. fxe6 dxe6 11. Qa4+ c6 12. Nf3 Bb6 13. Be3 Nd5 14. Bg5 Qc7 15. Nc3 O-O 16. Re1 Nxc3 17. bxc3 c5 18. Rxe6 Kh8 19. Re7 Qc8 20. d5 Bd8 21. Re8 Nd7 22. Qxd7 {1-0 (22) Bacrot,E (2695)-Edouard,R (2626) chess.com INT 2017}) 10. Nc3 {[%emt 0:07:11]} d5 $146 {[%emt 0:10:29]} ({Predecessor:} 10... O-O 11. d5 Kh8 12. dxe6 d5 13. Bd3 c5 14. Nf3 Nc6 15. Ne2 {½-½ (92) Varga,P (2415)-Sulava,N (2497) Nancy 2006}) 11. Bb5+ {[%emt 0:06:09]} c6 {[%emt 0:00:16]} 12. Bd3 {[%emt 0:00:40]} exf5 {[%emt 0:00:53]} 13. Bxf5 {[%emt 0:02:48]} O-O {[%emt 0:00:25]} 14. Nge2 {[%emt 0:05:02]} Na6 {[%emt 0:13:29]} 15. Qc2 {[%emt 0:13:58]} Bc8 {[%emt 0:05:49]} 16. Ng3 {[%emt 0:09:38]} c5 {[%emt 0:05:48]} 17. Be3 {[%emt 0:02:51]} cxd4 {[%emt 0:11:12]} 18. Bxd4 {[%emt 0:00:47]} Bc5 {[%emt 0:00:54]} 19. Rd1 {[%emt 0:04:09]} Bxd4 {[%emt 0:04:34]} 20. Rxd4 {[%emt 0:00:48]} Qb6 {[%emt 0:01:27]} 21. Qd2 {[%emt 0:06:19]} Nc7 {[%emt 0:03:45]} 22. h4 {[%emt 0:05:00]} Bxf5 {[%emt 0:04:38]} 23. Nxf5 {[%emt 0:00:09]} Rae8 {[%emt 0:00:14]} 24. Rh3 {[%emt 0:03:38]} Ne6 {[%emt 0:04:52]} 25. Rb4 {[%emt 0:01:50]} Ne4 {[%emt 0:04:15]} ({Günstiger ist} 25... Qc5 $14) 26. Nxe4 {[%emt 0:03:06]} Qa6+ {[%emt 0:00:33]} 27. Kg1 {[%emt 0:02:51]} Rxf5 {[%emt 0:00:38]} 28. Ng3 {[%emt 0:04:07]} Re5 $2 {[%emt 0:01:05]} (28... Rf7 $16) 29. f4 $18 {[%emt 0:01:08]} Nxf4 {[%emt 0:02:37]} 30. Qxf4 {[%emt 0:00:47]} Re1+ {[%emt 0:00:27]} 31. Kh2 {[%emt 0:00:10]} Rf8 {[%emt 0:01:26]} 32. Rb8 {[%emt 0:00:48]} 1-0

[Event "4th EFE Metz Festival-IM"]
[Site "Metz"]
[Date "2018.07.24"]
[Round "2"]
[White "Harutyunyan, Ruben"]
[Black "Mohota, Nisha"]
[Result "1/2-1/2"]
[ECO "C86"]
[WhiteElo "2303"]
[BlackElo "2265"]
[Annotator "NA"]
[PlyCount "60"]
[EventDate "2018.07.22"]
[EventType "tourn"]
[EventCountry "FRA"]
[SourceTitle "playchess.com"]
[Source "ChessBase"]
[SourceQuality "1"]
[TimeControl "5400+30"]

1. e4 {[%emt 0:00:00]} e5 {[%emt 0:20:38]} 2. Nf3 {[%emt 0:00:00]} Nc6 {[%emt 0:00:22]} 3. Bb5 {[%emt 0:00:00]} a6 {[%emt 0:00:06]} 4. Ba4 {[%emt 0:00:00]} Nf6 {[%emt 0:00:06]} 5. O-O {[%emt 0:00:00]} Be7 {[%emt 0:00:06]} 6. Qe2 {[%emt 0:00:00]} b5 {[%emt 0:01:01]} 7. Bb3 {[%emt 0:00:00]} O-O {[%emt 0:00:39]} 8. c3 {[%emt 0:00:00]} d5 {[%emt 0:06:05]} 9. d3 {[%emt 0:00:10]} dxe4 {[%emt 0:08:35] C86: Spanische Partie (Englischer Angriff)} (9... Re8 10. Rd1 Be6 11. Nbd2 h6 12. Nf1 Bf8 13. Ng3 d4 14. Bxe6 Rxe6 15. Nf5 Ne8 16. a4 Rb8 17. axb5 axb5 {0-1 (66) Bacrot,E (2725)-Aronian,L (2805) Riadh 2017}) 10. dxe4 {[%emt 0:00:06]} Bc5 {[%emt 0:00:03]} 11. Be3 $146 {[%emt 0:07:56]} ({Vorgänger:} 11. Bg5 h6 12. Bh4 Qe7 13. Nbd2 Rd8 14. Bd5 Bd7 15. b4 Bd6 16. a4 bxa4 17. Qc4 {½-½ (67) Videnova,I (2160)-Velcheva,M (2254) Sunny Beach 2009}) 11... Bxe3 {[%emt 0:03:14]} 12. Qxe3 {[%emt 0:00:09]} Qe7 {[%emt 0:00:02]} 13. Nbd2 {[%emt 0:07:05]} Na5 {[%emt 0:03:44]} 14. Bc2 {[%emt 0:02:18]} c5 {[%emt 0:00:38]} 15. Nb3 {[%emt 0:21:19]} Nb7 {[%emt 0:06:38]} 16. a4 {[%emt 0:10:15]} Bg4 {[%emt 0:05:57]} 17. Nh4 {[%emt 0:14:21]} c4 {[%emt 0:09:22]} 18. Nd2 {[%emt 0:02:10]} Qc5 {[%emt 0:02:20]} 19. Qg3 {[%emt 0:08:38]} Be2 {[%emt 0:04:41]} 20. Rfe1 {[%emt 0:08:28]} Nh5 {[%emt 0:01:24]} 21. Qg5 {[%emt 0:01:14]} h6 {[%emt 0:01:26]} 22. Qe3 {[%emt 0:00:12]} Qxe3 {[%emt 0:04:48]} 23. fxe3 {[%emt 0:00:05]} Bd3 {[%emt 0:02:48]} 24. Bxd3 {[%emt 0:01:37]} cxd3 {[%emt 0:00:02]} 25. Nhf3 {[%emt 0:01:16]} Nc5 {[%emt 0:01:08]} 26. axb5 {[%emt 0:02:34]} axb5 {[%emt 0:00:03]} 27. Nxe5 $11 {[%emt 0:08:43]} Rxa1 {[%emt 0:03:49]} 28. Rxa1 {[%emt 0:00:02]} Re8 {[%emt 0:00:21]} 29. Nef3 {[%emt 0:02:12]} Nxe4 {[%emt 0:01:28]} 30. Nxe4 {[%emt 0:00:03]} Rxe4 {[%emt 0:02:27]} 1/2-1/2

[Event "4th EFE Metz Festival-IM"]
[Site "Metz"]
[Date "2018.07.24"]
[Round "2"]
[White "Adrian, Claude"]
[Black "Villegas, Pierre"]
[Result "1/2-1/2"]
[ECO "E04"]
[WhiteElo "2267"]
[BlackElo "2376"]
[Annotator "NA"]
[PlyCount "71"]
[EventDate "2018.07.22"]
[EventType "tourn"]
[EventCountry "FRA"]
[SourceTitle "playchess.com"]
[Source "ChessBase"]
[SourceQuality "1"]
[TimeControl "5400+30"]

1. Nf3 {[%emt 0:00:00]} d5 {[%emt 0:20:19]} 2. d4 {[%emt 0:00:00]} Nf6 {[%emt 0:00:03]} 3. c4 {[%emt 0:00:00]} e6 {[%emt 0:00:02]} 4. g3 {[%emt 0:00:00]} dxc4 {[%emt 0:00:21]} 5. Bg2 {[%emt 0:00:08]} Bd7 {[%emt 0:00:02]} 6. Qc2 {[%emt 0:05:44] E04: Katalanisch} (6. Ne5 Nc6 7. Nxc4 Bb4+ 8. Nc3 Nd5 9. Qd3 O-O 10. O-O Be7 11. Rd1 Bf6 12. e3 Ncb4 13. Qd2 c5 14. Ne4 cxd4 15. Nxf6+ Qxf6 {1-0 (36) Van Wely,L (2695)-Harikrishna,P (2766) Wijk aan Zee 2017}) 6... Bc6 {[%emt 0:00:56]} 7. O-O {[%emt 0:00:43]} Nbd7 {[%emt 0:03:58]} 8. Bg5 {[%emt 0:05:02]} Be7 $146 {[%emt 0:13:40]} ({Vorgänger:} 8... h6 9. Bxf6 Nxf6 10. Qxc4 Be7 11. Nc3 O-O 12. Rac1 Bd6 13. Rfd1 Qe7 14. Qd3 Bb4 15. a3 Bxc3 16. Qxc3 Rac8 17. Qa5 a6 18. Rxc6 bxc6 19. Ne5 Nd5 20. Nxc6 {1-0 (39) Wessman,R (2425)-Brynell,S (2485) Haparanda 1994}) 9. Nbd2 {[%emt 0:02:54]} Nb6 {[%emt 0:01:55]} 10. Nxc4 {[%emt 0:02:30]} Nxc4 {[%emt 0:01:38]} 11. Qxc4 {[%emt 0:00:04]} O-O {[%emt 0:08:20]} 12. Rfd1 {[%emt 0:10:26]} Qd5 {[%emt 0:11:23]} 13. Qc1 {[%emt 0:11:01]} Qb5 {[%emt 0:06:17]} 14. a4 {[%emt 0:05:17]} Qa5 {[%emt 0:01:00]} 15. Bd2 {[%emt 0:19:04]} Bb4 {[%emt 0:00:52]} 16. Qc4 {[%emt 0:08:10]} Bxd2 {[%emt 0:00:41]} 17. Nxd2 {[%emt 0:00:15]} Bxg2 {[%emt 0:01:53]} 18. Kxg2 {[%emt 0:00:11]} Rfd8 {[%emt 0:07:09]} 19. Nb3 {[%emt 0:03:33]} Qd5+ {[%emt 0:04:17]} 20. Qxd5 {[%emt 0:00:10]} exd5 {[%emt 0:00:04]} 21. Rdc1 {[%emt 0:01:16]} c6 {[%emt 0:01:04]} 22. Nc5 {[%emt 0:00:37]} Rab8 {[%emt 0:00:05]} 23. b4 {[%emt 0:00:35]} Ne4 {[%emt 0:02:11]} 24. Nxe4 {[%emt 0:03:40]} dxe4 {[%emt 0:00:01]} 25. e3 {[%emt 0:00:11]} a6 {[%emt 0:04:57]} 26. Rc5 {[%emt 0:00:23]} Re8 {[%emt 0:00:36]} 27. Rac1 {[%emt 0:04:33]} g6 {[%emt 0:01:09]} 28. g4 {[%emt 0:00:18]} h6 {[%emt 0:01:07]} 29. h4 {[%emt 0:04:15]} Re6 $16 {[%emt 0:00:33]} 30. Kg3 {[%emt 0:01:03]} Rbe8 {[%emt 0:00:32]} 31. d5 {[%emt 0:06:55]} cxd5 {[%emt 0:00:18]} 32. Rxd5 {[%emt 0:00:01]} Kg7 {[%emt 0:02:37]} 33. Rc7 {[%emt 0:00:36]} R8e7 {[%emt 0:00:06]} 34. Rxe7 {[%emt 0:01:49]} Rxe7 {[%emt 0:00:01]} 35. Kf4 {[%emt 0:00:09]} f6 {[%emt 0:01:13]} 36. h5 {[%emt 0:05:33]} 1/2-1/2